[Event "Titled Tuesday Blitz November 2 2021"]
[White "Srebrnic, Marko"]
[Black "Wagner, Dennis"]
[WhiteFideId "14603616"]
[BlackFideId "24650684"]
[WhiteElo "2340"]
[BlackElo "2355"]
[Result "0-1"]
[Round "05"]
[TimeControl "180+1"]
[Date "2021.11.02"]
[WhiteClock "0:00:17"]
[BlackClock "0:01:16"]

1. e4 {[%clk 0:03:00]}  c5 {[%clk 0:02:53]} 2. Nf3 {[%clk 0:03:00]}  d6 {[%clk 0:02:52]} 3. d4 {[%clk 0:03:00]}  cxd4 {[%clk 0:02:53]} 4. Nxd4 {[%clk 0:03:00]}  Nf6 {[%clk 0:02:52]} 5. Nc3 {[%clk 0:03:01]}  a6 {[%clk 0:02:51]} 6. Bc4 {[%clk 0:03:00]}  e6 {[%clk 0:02:50]} 7. O-O {[%clk 0:03:01]}  b5 {[%clk 0:02:48]} 8. Bb3 {[%clk 0:03:01]}  Bb7 {[%clk 0:02:49]} 9. Re1 {[%clk 0:02:58]}  Nbd7 {[%clk 0:02:49]} 10. Bxe6 {[%clk 0:02:56]}  fxe6 {[%clk 0:02:48]} 11. Nxe6 {[%clk 0:02:57]}  Qe7 {[%clk 0:02:48]} 12. Nc7+ {[%clk 0:02:55]}  Kd8 {[%clk 0:02:47]} 13. Nxa8 {[%clk 0:02:55]}  Bxa8 {[%clk 0:02:48]} 14. Nd5 {[%clk 0:02:53]}  Nxd5 {[%clk 0:02:46]} 15. exd5 {[%clk 0:02:49]}  Qf7 {[%clk 0:02:45]} 16. Bg5+ {[%clk 0:02:28]}  Kc7 {[%clk 0:02:45]} 17. Qd2 {[%clk 0:01:43]}  Qxd5 {[%clk 0:02:44]} 18. Qa5+ {[%clk 0:01:38]}  Nb6 {[%clk 0:02:36]} 19. Bd8+ {[%clk 0:01:35]}  Kxd8 {[%clk 0:02:31]} 20. Qxb6+ {[%clk 0:01:34]}  Kd7 {[%clk 0:02:32]} 21. f3 {[%clk 0:01:27]}  Qc5+ {[%clk 0:02:19]} 22. Qxc5 {[%clk 0:01:25]}  dxc5 {[%clk 0:02:20]} 23. a4 {[%clk 0:01:23]}  b4 {[%clk 0:02:18]} 24. Rad1+ {[%clk 0:01:17]}  Bd6 {[%clk 0:02:19]} 25. Re5 {[%clk 0:01:16]}  Kc7 {[%clk 0:02:15]} 26. Re6 {[%clk 0:01:11]}  Rd8 {[%clk 0:02:13]} 27. Kf1 {[%clk 0:01:10]}  a5 {[%clk 0:01:59]} 28. b3 {[%clk 0:01:02]}  Bb7 {[%clk 0:01:58]} 29. Ke1 {[%clk 0:00:52]}  Bc8 {[%clk 0:01:56]} 30. Re2 {[%clk 0:00:44]}  h5 {[%clk 0:01:41]} 31. g3 {[%clk 0:00:35]}  Bf5 {[%clk 0:01:40]} 32. Rdd2 {[%clk 0:00:27]}  Rf8 {[%clk 0:01:36]} 33. Rd5 {[%clk 0:00:23]}  g6 {[%clk 0:01:28]} 34. Red2 {[%clk 0:00:21]}  Rf6 {[%clk 0:01:29]} 35. Ke2 {[%clk 0:00:19]}  Bc8 {[%clk 0:01:24]} 36. f4 {[%clk 0:00:17]}  Bb7 {[%clk 0:01:21]} 37. R5d3 {[%clk 0:00:16]}  Ba6 {[%clk 0:01:20]} 38. Kf3 {[%clk 0:00:16]}  Bxd3 {[%clk 0:01:20]} 39. Rxd3 {[%clk 0:00:17]}  g5 {[%clk 0:01:16]} 0-1


[Site "https://www.chess.com"]

[Event "Titled Tuesday Blitz November 2 2021"]
[White "Tikhonov, Viacheslav"]
[Black "Gaehwiler, Gabriel"]
[WhiteFideId "44196407"]
[BlackFideId "1314530"]
[WhiteElo "1773"]
[BlackElo "2320"]
[Result "1/2-1/2"]
[Round "05"]
[TimeControl "180+1"]
[Date "2021.11.02"]
[WhiteClock "0:00:15"]
[BlackClock "0:00:13"]

1. Nf3 {[%clk 0:03:00]}  Nf6 {[%clk 0:02:59]} 2. c4 {[%clk 0:02:59]}  g6 {[%clk 0:02:59]} 3. b3 {[%clk 0:02:59]}  Bg7 {[%clk 0:02:59]} 4. Bb2 {[%clk 0:02:59]}  O-O {[%clk 0:02:58]} 5. g3 {[%clk 0:02:59]}  d6 {[%clk 0:02:51]} 6. Bg2 {[%clk 0:02:59]}  e5 {[%clk 0:02:51]} 7. d3 {[%clk 0:02:59]}  a5 {[%clk 0:02:50]} 8. a3 {[%clk 0:02:58]}  Nc6 {[%clk 0:02:51]} 9. O-O {[%clk 0:02:58]}  Re8 {[%clk 0:02:51]} 10. Nbd2 {[%clk 0:02:58]}  e4 {[%clk 0:02:49]} 11. dxe4 {[%clk 0:02:48]}  Nxe4 {[%clk 0:02:49]} 12. Bxg7 {[%clk 0:02:48]}  Kxg7 {[%clk 0:02:49]} 13. Nxe4 {[%clk 0:02:46]}  Rxe4 {[%clk 0:02:50]} 14. e3 {[%clk 0:02:41]}  Re8 {[%clk 0:02:36]} 15. Qd2 {[%clk 0:02:39]}  Qf6 {[%clk 0:02:35]} 16. Nd4 {[%clk 0:02:34]}  Bd7 {[%clk 0:02:34]} 17. Nb5 {[%clk 0:02:32]}  Rac8 {[%clk 0:01:58]} 18. c5 {[%clk 0:02:27]}  Ne5 {[%clk 0:01:56]} 19. Qxa5 {[%clk 0:02:03]}  Ra8 {[%clk 0:01:23]} 20. Qb4 {[%clk 0:02:02]}  dxc5 {[%clk 0:01:17]} 21. Qxc5 {[%clk 0:01:59]}  b6 {[%clk 0:01:15]} 22. Qxc7 {[%clk 0:01:37]}  Bxb5 {[%clk 0:01:14]} 23. Bxa8 {[%clk 0:01:37]}  Rxa8 {[%clk 0:01:13]} 24. Rfc1 {[%clk 0:01:26]}  Bc6 {[%clk 0:01:05]} 25. f4 {[%clk 0:01:22]}  Nf3+ {[%clk 0:01:02]} 26. Kf1 {[%clk 0:01:12]}  Nxh2+ {[%clk 0:00:54]} 27. Kg1 {[%clk 0:01:12]}  Nf3+ {[%clk 0:00:49]} 28. Kf1 {[%clk 0:01:12]}  Be4 {[%clk 0:00:30]} 29. Qc3 {[%clk 0:01:11]}  Rd8 {[%clk 0:00:27]} 30. Qxf6+ {[%clk 0:01:09]}  Kxf6 {[%clk 0:00:28]} 31. Rd1 {[%clk 0:01:08]}  Nd2+ {[%clk 0:00:19]} 32. Ke1 {[%clk 0:01:08]}  Nf3+ {[%clk 0:00:18]} 33. Kf2 {[%clk 0:01:08]}  Rc8 {[%clk 0:00:18]} 34. Rac1 {[%clk 0:01:02]}  Ra8 {[%clk 0:00:18]} 35. Rc4 {[%clk 0:00:56]}  Bb7 {[%clk 0:00:16]} 36. e4 {[%clk 0:00:53]}  Rxa3 {[%clk 0:00:15]} 37. Kxf3 {[%clk 0:00:51]}  Rxb3+ {[%clk 0:00:15]} 38. Kf2 {[%clk 0:00:49]}  Rb2+ {[%clk 0:00:14]} 39. Ke3 {[%clk 0:00:49]}  Rb3+ {[%clk 0:00:14]} 40. Kd4 {[%clk 0:00:47]}  Rxg3 {[%clk 0:00:12]} 41. Rb4 {[%clk 0:00:47]}  Bc8 {[%clk 0:00:11]} 42. Rxb6+ {[%clk 0:00:46]}  Be6 {[%clk 0:00:12]} 43. Rf1 {[%clk 0:00:37]}  Rg4 {[%clk 0:00:12]} 44. f5 {[%clk 0:00:31]}  gxf5 {[%clk 0:00:12]} 45. Rxf5+ {[%clk 0:00:32]}  Kg7 {[%clk 0:00:12]} 46. Rh5 {[%clk 0:00:29]}  Kg6 {[%clk 0:00:11]} 47. Rh2 {[%clk 0:00:28]}  h5 {[%clk 0:00:11]} 48. Ke5 {[%clk 0:00:26]}  Rg5+ {[%clk 0:00:11]} 49. Kf4 {[%clk 0:00:26]}  Rg4+ {[%clk 0:00:12]} 50. Kf3 {[%clk 0:00:26]}  Kg5 {[%clk 0:00:10]} 51. Rb5+ {[%clk 0:00:26]}  Kg6 {[%clk 0:00:10]} 52. Rbxh5 {[%clk 0:00:26]}  Rg1 {[%clk 0:00:09]} 53. Rh6+ {[%clk 0:00:25]}  Kg7 {[%clk 0:00:10]} 54. Kf2 {[%clk 0:00:25]}  Rg4 {[%clk 0:00:09]} 55. Rh7+ {[%clk 0:00:26]}  Kf6 {[%clk 0:00:09]} 56. R7h4 {[%clk 0:00:26]}  Rg5 {[%clk 0:00:09]} 57. Rf4+ {[%clk 0:00:25]}  Ke7 {[%clk 0:00:09]} 58. Ke3 {[%clk 0:00:25]}  Ra5 {[%clk 0:00:09]} 59. Rd2 {[%clk 0:00:23]}  Ra3+ {[%clk 0:00:10]} 60. Rd3 {[%clk 0:00:24]}  Ra1 {[%clk 0:00:10]} 61. Rc3 {[%clk 0:00:23]}  Re1+ {[%clk 0:00:10]} 62. Kf3 {[%clk 0:00:23]}  Ra1 {[%clk 0:00:11]} 63. Rc7+ {[%clk 0:00:22]}  Kd6 {[%clk 0:00:11]} 64. Rc3 {[%clk 0:00:20]}  Ke5 {[%clk 0:00:12]} 65. Rc5+ {[%clk 0:00:19]}  Kd4 {[%clk 0:00:11]} 66. Rc7 {[%clk 0:00:13]}  Rf1+ {[%clk 0:00:11]} 67. Kg3 {[%clk 0:00:14]}  Rg1+ {[%clk 0:00:11]} 68. Kf2 {[%clk 0:00:14]}  Ra1 {[%clk 0:00:12]} 69. Rcxf7 {[%clk 0:00:12]}  Bxf7 {[%clk 0:00:10]} 70. Rxf7 {[%clk 0:00:13]}  Kxe4 {[%clk 0:00:11]} 71. Re7+ {[%clk 0:00:13]}  Kf4 {[%clk 0:00:11]} 72. Rf7+ {[%clk 0:00:13]}  Ke4 {[%clk 0:00:12]} 73. Re7+ {[%clk 0:00:14]}  Kf4 {[%clk 0:00:13]} 74. Rf7+ {[%clk 0:00:15]}  Ke4 {[%clk 0:00:13]} 1/2-1/2


[Site "https://www.chess.com"]

[Event "Titled Tuesday Blitz November 2 2021"]
[White "Timofeev, Artyom"]
[Black "Andreikin, Dmitry"]
[WhiteFideId "4140419"]
[BlackFideId "4158814"]
[WhiteElo "2591"]
[BlackElo "2736"]
[Result "1/2-1/2"]
[Round "05"]
[TimeControl "180+1"]
[Date "2021.11.02"]
[WhiteClock "0:00:30"]
[BlackClock "0:00:14"]

1. c4 {[%clk 0:03:00]}  g6 {[%clk 0:02:59]} 2. Nc3 {[%clk 0:03:00]}  Bg7 {[%clk 0:03:00]} 3. g3 {[%clk 0:03:00]}  e5 {[%clk 0:02:58]} 4. Bg2 {[%clk 0:02:59]}  Ne7 {[%clk 0:02:57]} 5. Nf3 {[%clk 0:02:53]}  c5 {[%clk 0:02:55]} 6. O-O {[%clk 0:02:52]}  Nbc6 {[%clk 0:02:55]} 7. Ne1 {[%clk 0:02:52]}  O-O {[%clk 0:02:54]} 8. Nc2 {[%clk 0:02:52]}  d6 {[%clk 0:02:52]} 9. Ne3 {[%clk 0:02:50]}  Be6 {[%clk 0:02:52]} 10. Ned5 {[%clk 0:02:47]}  Qd7 {[%clk 0:02:49]} 11. a3 {[%clk 0:02:44]}  Bh3 {[%clk 0:02:46]} 12. Rb1 {[%clk 0:02:43]}  Bxg2 {[%clk 0:02:46]} 13. Kxg2 {[%clk 0:02:43]}  Nxd5 {[%clk 0:02:42]} 14. Nxd5 {[%clk 0:02:42]}  Ne7 {[%clk 0:02:32]} 15. Nxe7+ {[%clk 0:02:40]}  Qxe7 {[%clk 0:02:33]} 16. b4 {[%clk 0:02:40]}  b6 {[%clk 0:02:32]} 17. e4 {[%clk 0:02:33]}  f5 {[%clk 0:02:31]} 18. d3 {[%clk 0:02:34]}  f4 {[%clk 0:02:29]} 19. f3 {[%clk 0:02:34]}  g5 {[%clk 0:02:26]} 20. g4 {[%clk 0:02:33]}  h5 {[%clk 0:02:25]} 21. h3 {[%clk 0:02:33]}  Kf7 {[%clk 0:02:24]} 22. Bd2 {[%clk 0:02:31]}  Rh8 {[%clk 0:02:24]} 23. Rh1 {[%clk 0:02:31]}  Rh6 {[%clk 0:02:23]} 24. a4 {[%clk 0:02:25]}  Rah8 {[%clk 0:02:21]} 25. Qb3 {[%clk 0:02:22]}  Bf8 {[%clk 0:01:37]} 26. a5 {[%clk 0:02:21]}  Kg8 {[%clk 0:01:37]} 27. axb6 {[%clk 0:02:02]}  axb6 {[%clk 0:01:38]} 28. Rbg1 {[%clk 0:01:34]}  hxg4 {[%clk 0:01:23]} 29. hxg4 {[%clk 0:01:32]}  Qh7 {[%clk 0:01:22]} 30. Rxh6 {[%clk 0:01:23]}  Qxh6 {[%clk 0:01:23]} 31. Qd1 {[%clk 0:01:08]}  Qh2+ {[%clk 0:01:22]} 32. Kf1 {[%clk 0:01:08]}  Rh3 {[%clk 0:01:17]} 33. Qe2 {[%clk 0:00:53]}  d5 {[%clk 0:01:01]} 34. exd5 {[%clk 0:00:47]}  cxb4 {[%clk 0:00:58]} 35. d4 {[%clk 0:00:45]}  e4 {[%clk 0:00:40]} 36. Qxe4 {[%clk 0:00:33]}  Qxd2 {[%clk 0:00:38]} 37. Qe6+ {[%clk 0:00:33]}  Kh8 {[%clk 0:00:31]} 38. Qe5+ {[%clk 0:00:32]}  Kh7 {[%clk 0:00:24]} 39. Qe4+ {[%clk 0:00:31]}  Kg7 {[%clk 0:00:16]} 40. Qe5+ {[%clk 0:00:31]}  Kg8 {[%clk 0:00:14]} 41. Qe6+ {[%clk 0:00:31]}  Kh8 {[%clk 0:00:14]} 42. Qe5+ {[%clk 0:00:32]}  Bg7 {[%clk 0:00:14]} 43. Qe8+ {[%clk 0:00:31]}  Kh7 {[%clk 0:00:15]} 44. Qe4+ {[%clk 0:00:31]}  Kh6 {[%clk 0:00:14]} 45. Qe6+ {[%clk 0:00:31]}  Kh7 {[%clk 0:00:15]} 46. Qe4+ {[%clk 0:00:31]}  Kg8 {[%clk 0:00:15]} 47. Qe8+ {[%clk 0:00:30]}  Bf8 {[%clk 0:00:14]} 48. Qe6+ {[%clk 0:00:30]} 1/2-1/2


[Site "https://www.chess.com"]

[Event "Titled Tuesday Blitz November 2 2021"]
[White "Urazayev, Arystanbek"]
[Black "Erdogdu, Mert"]
[WhiteFideId "13709810"]
[BlackFideId "6301495"]
[WhiteElo "2321"]
[BlackElo "2485"]
[Result "1-0"]
[Round "05"]
[TimeControl "180+1"]
[Date "2021.11.02"]
[WhiteClock "0:01:04"]
[BlackClock "0:00:04"]

1. e4 {[%clk 0:03:00]}  c5 {[%clk 0:02:58]} 2. Nf3 {[%clk 0:03:01]}  d6 {[%clk 0:02:58]} 3. d4 {[%clk 0:03:01]}  cxd4 {[%clk 0:02:59]} 4. Nxd4 {[%clk 0:03:02]}  Nf6 {[%clk 0:02:59]} 5. Nc3 {[%clk 0:03:02]}  a6 {[%clk 0:02:59]} 6. Rg1 {[%clk 0:03:02]}  e5 {[%clk 0:02:56]} 7. Nb3 {[%clk 0:03:02]}  h5 {[%clk 0:02:55]} 8. h3 {[%clk 0:03:03]}  Be6 {[%clk 0:02:45]} 9. g4 {[%clk 0:03:03]}  hxg4 {[%clk 0:02:44]} 10. hxg4 {[%clk 0:03:04]}  Be7 {[%clk 0:02:40]} 11. g5 {[%clk 0:03:04]}  Nfd7 {[%clk 0:02:37]} 12. g6 {[%clk 0:03:04]}  Nf6 {[%clk 0:02:30]} 13. gxf7+ {[%clk 0:03:04]}  Kxf7 {[%clk 0:02:30]} 14. Bg5 {[%clk 0:03:05]}  Nbd7 {[%clk 0:02:29]} 15. Qd2 {[%clk 0:02:56]}  Rc8 {[%clk 0:02:29]} 16. f3 {[%clk 0:02:56]}  b5 {[%clk 0:02:11]} 17. Qg2 {[%clk 0:02:48]}  Nh5 {[%clk 0:01:22]} 18. Bxe7 {[%clk 0:02:32]}  Qxe7 {[%clk 0:01:22]} 19. O-O-O {[%clk 0:02:18]}  Ndf6 {[%clk 0:01:11]} 20. Nd5 {[%clk 0:02:06]}  Nxd5 {[%clk 0:00:45]} 21. exd5 {[%clk 0:01:57]}  Bf5 {[%clk 0:00:44]} 22. Bd3 {[%clk 0:01:57]}  Qf6 {[%clk 0:00:42]} 23. Bxf5 {[%clk 0:01:25]}  Qxf5 {[%clk 0:00:42]} 24. Na5 {[%clk 0:01:12]}  Rh7 {[%clk 0:00:33]} 25. Nc6 {[%clk 0:01:09]}  Nf4 {[%clk 0:00:30]} 26. Qd2 {[%clk 0:01:09]}  Re8 {[%clk 0:00:17]} 27. Kb1 {[%clk 0:01:09]}  Kg8 {[%clk 0:00:14]} 28. Qb4 {[%clk 0:01:07]}  Qd7 {[%clk 0:00:12]} 29. Qe4 {[%clk 0:01:06]}  Rh6 {[%clk 0:00:04]} 30. Rg4 {[%clk 0:01:06]}  Kh8 {[%clk 0:00:04]} 31. Rdg1 {[%clk 0:01:06]}  Nh5 {[%clk 0:00:04]} 32. Rg6 {[%clk 0:01:04]} 1-0


[Site "https://www.chess.com"]

[Event "Titled Tuesday Blitz November 2 2021"]
[White "Zierk, Steven"]
[Black "Djordjevic, Vuk"]
[WhiteFideId "2034255"]
[BlackFideId "902098"]
[WhiteElo "2494"]
[BlackElo "2463"]
[Result "1-0"]
[Round "05"]
[TimeControl "180+1"]
[Date "2021.11.02"]
[WhiteClock "0:01:14"]
[BlackClock "0:00:17"]

1. e4 {[%clk 0:02:59]}  e6 {[%clk 0:03:00]} 2. d4 {[%clk 0:02:58]}  d5 {[%clk 0:03:00]} 3. Nc3 {[%clk 0:02:59]}  Bb4 {[%clk 0:03:00]} 4. Ne2 {[%clk 0:02:59]}  dxe4 {[%clk 0:02:59]} 5. a3 {[%clk 0:02:59]}  Bxc3+ {[%clk 0:02:59]} 6. Nxc3 {[%clk 0:03:00]}  Nc6 {[%clk 0:02:59]} 7. Bf4 {[%clk 0:02:57]}  Nge7 {[%clk 0:02:52]} 8. Nxe4 {[%clk 0:02:45]}  Nxd4 {[%clk 0:02:27]} 9. c3 {[%clk 0:02:40]}  Ndc6 {[%clk 0:02:05]} 10. Qxd8+ {[%clk 0:02:39]}  Nxd8 {[%clk 0:01:46]} 11. Bxc7 {[%clk 0:02:33]}  Nd5 {[%clk 0:01:44]} 12. Bd6 {[%clk 0:02:30]}  f5 {[%clk 0:01:38]} 13. Ng5 {[%clk 0:02:06]}  Nf7 {[%clk 0:01:15]} 14. Bb5+ {[%clk 0:02:05]}  Bd7 {[%clk 0:01:10]} 15. Bxd7+ {[%clk 0:02:04]}  Kxd7 {[%clk 0:01:11]} 16. Nxf7 {[%clk 0:02:05]}  Rhe8 {[%clk 0:01:10]} 17. O-O-O {[%clk 0:02:01]}  b5 {[%clk 0:00:59]} 18. h4 {[%clk 0:01:54]}  a6 {[%clk 0:00:52]} 19. h5 {[%clk 0:01:53]}  Rec8 {[%clk 0:00:40]} 20. h6 {[%clk 0:01:49]}  Rg8 {[%clk 0:00:36]} 21. Bg3 {[%clk 0:01:33]}  g5 {[%clk 0:00:35]} 22. Be5 {[%clk 0:01:29]}  Kc6 {[%clk 0:00:29]} 23. Rhe1 {[%clk 0:01:27]}  Raf8 {[%clk 0:00:26]} 24. Nd6 {[%clk 0:01:27]}  Rd8 {[%clk 0:00:25]} 25. c4 {[%clk 0:01:27]}  bxc4 {[%clk 0:00:20]} 26. Nxc4 {[%clk 0:01:27]}  g4 {[%clk 0:00:19]} 27. Kb1 {[%clk 0:01:22]}  Rd7 {[%clk 0:00:18]} 28. Bh2 {[%clk 0:01:19]}  Rb7 {[%clk 0:00:17]} 29. Rxe6+ {[%clk 0:01:18]}  Kc5 {[%clk 0:00:17]} 30. Rc1 {[%clk 0:01:14]} 1-0


[Site "https://www.chess.com"]

[Event "Titled Tuesday Blitz November 2 2021"]
[White "Zubov, Alexander"]
[Black "De Silva, L M S T"]
[WhiteFideId "14109409"]
[BlackFideId "9953698"]
[WhiteElo "2685"]
[BlackElo "1621"]
[Result "1/2-1/2"]
[Round "05"]
[TimeControl "180+1"]
[Date "2021.11.02"]
[WhiteClock "0:00:06"]
[BlackClock "0:00:06"]

1. d4 {[%clk 0:03:00]}  Nf6 {[%clk 0:02:59]} 2. c4 {[%clk 0:03:00]}  e6 {[%clk 0:03:00]} 3. Nf3 {[%clk 0:02:57]}  b6 {[%clk 0:03:00]} 4. a3 {[%clk 0:02:56]}  Bb7 {[%clk 0:03:01]} 5. Nc3 {[%clk 0:02:56]}  Ne4 {[%clk 0:03:01]} 6. Nxe4 {[%clk 0:02:56]}  Bxe4 {[%clk 0:03:02]} 7. Nd2 {[%clk 0:02:56]}  Bb7 {[%clk 0:03:02]} 8. e4 {[%clk 0:02:55]}  Be7 {[%clk 0:03:00]} 9. Bd3 {[%clk 0:02:54]}  O-O {[%clk 0:03:00]} 10. O-O {[%clk 0:02:54]}  d6 {[%clk 0:03:01]} 11. Nf3 {[%clk 0:02:52]}  Nd7 {[%clk 0:03:01]} 12. Re1 {[%clk 0:02:42]}  e5 {[%clk 0:03:01]} 13. d5 {[%clk 0:02:41]}  a5 {[%clk 0:03:01]} 14. b3 {[%clk 0:02:40]}  Nc5 {[%clk 0:02:56]} 15. Bc2 {[%clk 0:02:40]}  Bc8 {[%clk 0:02:57]} 16. Be3 {[%clk 0:02:25]}  f5 {[%clk 0:02:55]} 17. exf5 {[%clk 0:02:23]}  Bxf5 {[%clk 0:02:55]} 18. Bxf5 {[%clk 0:02:22]}  Rxf5 {[%clk 0:02:56]} 19. Bxc5 {[%clk 0:02:11]}  bxc5 {[%clk 0:02:55]} 20. Nd2 {[%clk 0:02:10]}  Qd7 {[%clk 0:02:54]} 21. Ne4 {[%clk 0:02:10]}  Raf8 {[%clk 0:02:54]} 22. Qd2 {[%clk 0:01:56]}  Rf4 {[%clk 0:02:46]} 23. Qxa5 {[%clk 0:01:43]}  Qg4 {[%clk 0:02:44]} 24. Re3 {[%clk 0:00:45]}  Bh4 {[%clk 0:02:12]} 25. Rf1 {[%clk 0:00:30]}  Qg6 {[%clk 0:00:47]} 26. f3 {[%clk 0:00:29]}  Bg5 {[%clk 0:00:29]} 27. Qe1 {[%clk 0:00:18]}  h5 {[%clk 0:00:25]} 28. Kh1 {[%clk 0:00:14]}  Bh6 {[%clk 0:00:24]} 29. Re2 {[%clk 0:00:13]}  h4 {[%clk 0:00:24]} 30. h3 {[%clk 0:00:13]}  Qh5 {[%clk 0:00:23]} 31. b4 {[%clk 0:00:11]}  cxb4 {[%clk 0:00:22]} 32. axb4 {[%clk 0:00:11]}  g5 {[%clk 0:00:22]} 33. c5 {[%clk 0:00:11]}  Qg6 {[%clk 0:00:19]} 34. cxd6 {[%clk 0:00:07]}  cxd6 {[%clk 0:00:20]} 35. b5 {[%clk 0:00:08]}  g4 {[%clk 0:00:20]} 36. hxg4 {[%clk 0:00:08]}  Bg5 {[%clk 0:00:18]} 37. Nf2 {[%clk 0:00:06]}  Rd4 {[%clk 0:00:10]} 38. Qc3 {[%clk 0:00:06]}  h3 {[%clk 0:00:09]} 39. Nxh3 {[%clk 0:00:06]}  Rxg4 {[%clk 0:00:08]} 40. b6 {[%clk 0:00:05]}  Rh4 {[%clk 0:00:08]} 41. f4 {[%clk 0:00:04]}  Bxf4 {[%clk 0:00:06]} 42. b7 {[%clk 0:00:04]}  Qg4 {[%clk 0:00:04]} 43. Qf3 {[%clk 0:00:03]}  Qf5 {[%clk 0:00:03]} 44. Rb2 {[%clk 0:00:02]}  Rb8 {[%clk 0:00:02]} 45. Rc1 {[%clk 0:00:02]}  Rg4 {[%clk 0:00:02]} 46. Rc8+ {[%clk 0:00:01]}  Rxc8 {[%clk 0:00:02]} 47. bxc8=Q+ {[%clk 0:00:02]}  Qxc8 {[%clk 0:00:03]} 48. Rb1 {[%clk 0:00:02]}  Qf5 {[%clk 0:00:03]} 49. Rf1 {[%clk 0:00:02]}  Qg6 {[%clk 0:00:02]} 50. Kg1 {[%clk 0:00:02]}  Rg3 {[%clk 0:00:02]} 51. Nxf4 {[%clk 0:00:01]}  exf4 {[%clk 0:00:01]} 52. Qxf4 {[%clk 0:00:02]}  Rxg2+ {[%clk 0:00:02]} 53. Kh1 {[%clk 0:00:02]}  Rg5 {[%clk 0:00:02]} 54. Qf8+ {[%clk 0:00:03]}  Kh7 {[%clk 0:00:03]} 55. Rf7+ {[%clk 0:00:03]}  Qg7 {[%clk 0:00:04]} 56. Rxg7+ {[%clk 0:00:03]}  Rxg7 {[%clk 0:00:05]} 57. Qxd6 {[%clk 0:00:04]}  Rg6 {[%clk 0:00:06]} 58. Qe5 {[%clk 0:00:04]}  Rg7 {[%clk 0:00:06]} 59. d6 {[%clk 0:00:05]}  Rg6 {[%clk 0:00:06]} 60. Qf5 {[%clk 0:00:05]}  Kg7 {[%clk 0:00:06]} 61. Qxg6+ {[%clk 0:00:05]}  Kh8 {[%clk 0:00:06]} 62. d7 {[%clk 0:00:06]} 1/2-1/2


[Site "https://www.chess.com"]

[Event "Titled Tuesday Blitz November 2 2021"]
[White "Andreikin, Dmitry"]
[Black "Zierk, Steven"]
[WhiteFideId "4158814"]
[BlackFideId "2034255"]
[WhiteElo "2736"]
[BlackElo "2494"]
[Result "1-0"]
[Round "06"]
[TimeControl "180+1"]
[Date "2021.11.02"]
[WhiteClock "0:00:55"]
[BlackClock "0:00:09"]

1. d4 {[%clk 0:03:00]}  d5 {[%clk 0:02:58]} 2. c4 {[%clk 0:03:00]}  dxc4 {[%clk 0:02:59]} 3. e3 {[%clk 0:02:59]}  e5 {[%clk 0:02:58]} 4. Bxc4 {[%clk 0:02:59]}  exd4 {[%clk 0:02:57]} 5. exd4 {[%clk 0:02:58]}  Bd6 {[%clk 0:02:54]} 6. Nf3 {[%clk 0:02:58]}  Nf6 {[%clk 0:02:53]} 7. O-O {[%clk 0:02:58]}  O-O {[%clk 0:02:54]} 8. Nc3 {[%clk 0:02:57]}  Nc6 {[%clk 0:02:53]} 9. h3 {[%clk 0:02:56]}  h6 {[%clk 0:02:52]} 10. Bd3 {[%clk 0:02:51]}  Nb4 {[%clk 0:02:46]} 11. Bb1 {[%clk 0:02:51]}  Re8 {[%clk 0:02:45]} 12. a3 {[%clk 0:02:47]}  Nbd5 {[%clk 0:02:45]} 13. Qd3 {[%clk 0:02:42]}  Be6 {[%clk 0:02:20]} 14. Bc2 {[%clk 0:02:17]}  Qd7 {[%clk 0:02:14]} 15. Ne5 {[%clk 0:02:14]}  Qd8 {[%clk 0:01:48]} 16. Qg3 {[%clk 0:02:13]}  Nxc3 {[%clk 0:01:38]} 17. bxc3 {[%clk 0:02:11]}  Nh5 {[%clk 0:01:33]} 18. Qd3 {[%clk 0:02:07]}  Nf6 {[%clk 0:01:29]} 19. Re1 {[%clk 0:01:51]}  c5 {[%clk 0:01:26]} 20. dxc5 {[%clk 0:01:39]}  Bxe5 {[%clk 0:01:11]} 21. Rxe5 {[%clk 0:01:40]}  Qxd3 {[%clk 0:01:10]} 22. Bxd3 {[%clk 0:01:40]}  Nd7 {[%clk 0:01:03]} 23. Rh5 {[%clk 0:01:32]}  Rac8 {[%clk 0:00:57]} 24. Be3 {[%clk 0:01:31]}  g6 {[%clk 0:00:35]} 25. Rxh6 {[%clk 0:01:29]}  Kg7 {[%clk 0:00:32]} 26. Bb5 {[%clk 0:01:19]}  a6 {[%clk 0:00:19]} 27. Bxd7 {[%clk 0:01:14]}  Bxd7 {[%clk 0:00:19]} 28. Rh4 {[%clk 0:01:14]}  Bc6 {[%clk 0:00:18]} 29. Rd1 {[%clk 0:01:12]}  Rcd8 {[%clk 0:00:15]} 30. Rd6 {[%clk 0:01:05]}  f6 {[%clk 0:00:12]} 31. Rhd4 {[%clk 0:00:59]}  Rc8 {[%clk 0:00:11]} 32. Rf4 {[%clk 0:00:57]}  f5 {[%clk 0:00:09]} 33. Bd4+ {[%clk 0:00:55]} 1-0


[Site "https://www.chess.com"]